Workbook

Sheet WS5016
B1: PROJECT DESCRIPTION | AA1: ="" -> 
AA2: ="" -> 
AA3: ="" -> 
AA4: ="" ->  | AD4: Tested By:
AA5: ="" -> 
B23: TEST NUMBER
B24: Quality Control (Qc) | C24: Running Average of 4 | D24: Verification (V) | E24: Non-Rndm Process Cntrl (PC) | F24: Independent Assurance (IAP) | G24: Comments / Adjustments
B25: Type of Test
B26: Air Content
B27: PCC Temperature
B28: Lot-Sublot
B29: Station
B30: Date
B31: Time
B32: Batch Number

Sheet Example
B1: PROJECT DESCRIPTION | AA1: ="" -> 
E2: 1530-08-72 | S2: 970221990 | AA2: ="" -> 
E3: STH 15 | S3: Dane | AA3: ="" -> 
E4: CTH A - CTH B | AA4: ="" ->  | AD4: Tested By: | AG4: XYZ Testing Service
E5: XYZ Construction Company | AA5: ="" -> 
B23: TEST NUMBER | H23: 1 | J23: 2 | L23: 3 | N23: 4 | P23: 5 | R23: 6 | T23: 7 | V23: 8 | X23: 9 | Z23: 10 | AB23: 11 | AD23: 12 | AF23: 13 | AH23: 14 | AJ23: 15 | AL23: 16 | AN23: 17 | AP23: 18 | AR23: 19 | AT23: 20
B24: Quality Control (Qc) | C24: Running Average of 4 | D24: Verification (V) | E24: Non-Rndm Process Cntrl (PC) | F24: Independent Assurance (IAP) | G24: Comments / Adjustments | H24: Startup Monday 6/9/97 | I24: Increased AE dosage to 7 oz/CY | W24: Increased testing frequency | Y24: Increased AE dosage to 7.5 oz/CY | AB24: Material out of Spec | AD24: Material out of Spec | AE24: Increased AE dosage to 8 oz/CY | AF24: Material out of Spec | AG24: Increased AE dosage to 9 oz/CY | AH24: Material out of Spec | AI24: Increased AE dosage to 10 oz/CY | AJ24: Startup Tuesday 6/10/97 | AK24: Return to standard frequency
B25: Type of Test | H25: Qc | J25: Qc | L25: Qc | N25: Qc | P25: Qc | R25: V | T25: Qc | V25: Qc | X25: Qc | Z25: Qc | AB25: Qc | AD25: PC | AF25: PC | AH25: PC | AJ25: Qc | AL25: Qc | AN25: V | AP25: Qc | AR25: Qc | AT25: Qc
B26: Air Content | H26: 6.5 | J26: 7 | L26: 7.2 | N26: 7.5 | P26: 6.2 | R26: 6.5 | T26: 6.3 | V26: 5.8 | X26: 6 | Z26: 5.6 | AB26: 5.4 | AD26: 5.2 | AF26: 5 | AH26: 5.3 | AJ26: 6.4 | AL26: 6.5 | AN26: 6.8 | AP26: 7.5 | AR26: 7.1 | AT26: 6.9
B27: PCC Temperature | H27: 70 | J27: 72 | L27: 73 | N27: 75 | P27: 78 | R27: 80 | T27: 84 | V27: 85 | X27: 86 | Z27: 85 | AB27: 83 | AD27: 82 | AF27: 82 | AH27: 80 | AJ27: 73 | AL27: 72 | AN27: 75 | AP27: 76 | AR27: 78 | AT27: 78
B28: Lot-Sublot | H28: 1-1 | J28: 1-2 | L28: 1-3 | N28: 1-4 | P28: 1-5 | T28: 1-6 | V28: 1-7 | X28: 1-8 | Z28: 1-9 | AB28: 1-10 | AJ28: 2-1 | AL28: 2-2 | AP28: 2-3 | AR28: 2-4 | AT28: 2-5
B29: Station | H29: 101+14 | J29: 109+67 | L29: 115+15 | N29: 124+68 | P29: 129+44 | R29: 131+50 | T29: 134+70 | V29: 142+16 | X29: 144+10 | Z29: 146+85 | AB29: 149+10 | AD29: 150+25 | AF29: 150+85 | AH29: 151+20 | AJ29: 151+85 | AL29: 161+20 | AN29: 169+74 | AP29: 177+41 | AR29: 180+25 | AT29: 183+66
B30: Date | H30: 1997-06-09 | J30: 1997-06-09 | L30: 1997-06-09 | N30: 1997-06-09 | P30: 1997-06-09 | R30: 1997-06-09 | T30: 1997-06-09 | V30: 1997-06-09 | X30: 1997-06-09 | Z30: 1997-06-09 | AB30: 1997-06-09 | AD30: 1997-06-09 | AF30: 1997-06-09 | AH30: 1997-06-09 | AJ30: 1997-06-10 | AL30: 1997-06-10 | AN30: 1997-06-10 | AP30: 1997-06-10 | AR30: 1997-06-10 | AT30: 1997-06-10
B31: Time | H31: 7:13 | J31: 8:52 | L31: 9:55 | N31: 11:46 | P31: 12:41 | R31: 13:00:00 | T31: 13:42 | V31: 15:18:00 | X31: 15:39:00 | Z31: 16:00:00 | AB31: 16:39 | AD31: 16:54:00 | AF31: 17:10:00 | AH31: 17:25:00 | AJ31: 07:30:00 | AL31: 07:43:00 | AN31: 7:27 | AP31: 9:56 | AR31: 10:08:00 | AT31: 10:47:00
B32: Batch Number | H32: 2 | J32: 60 | L32: 94 | N32: 152 | P32: 182 | R32: 214 | T32: 260 | V32: 309 | X32: 320 | Z32: 369 | AB32: 430 | AD32: 478 | AF32: 516 | AH32: 556 | AJ32: 3 | AL32: 43 | AN32: 65 | AP32: 106 | AR32: 137 | AT32: 168

Sheet Data
C2: RUNNING | E2: CONTRACTOR | G2: LOWER | H2: LOWER | I2: UPPER
A3: TEST | B3: CONTRACTOR | C3: AVERAGE | D3: VERIFICATION | E3: PROCESS | F3: TEST | G3: CONTROL | H3: WARNING | I3: CONTROL
A4: NUMBER | B4: ACCEPTANCE | C4: OF 4 | E4: CONTROL | F4: NUMBER | G4: LIMIT | H4: LIMIT | I4: LIMIT
A5: 1 | B5: 6.5 | F5: 0 | G5: 5.5 | H5: 6 | I5: 8.5
A6: 2 | B6: 7 | F6: 1000 | G6: 5.5 | H6: 6 | I6: 8.5
A7: 3 | B7: 7.2
A8: 4 | B8: 7.5 | C8: =AVERAGE(B5:B8) -> 7.05
A9: 5 | B9: 6.2 | C9: =AVERAGE(B6:B9) -> 6.975
A10: 6 | D10: 6.5
A11: 7 | B11: 6.3 | C11: =AVERAGE(B7:B11) -> 6.8
A12: 8 | B12: 5.8 | C12: =AVERAGE(B8:B12) -> 6.45
A13: 9 | B13: 6 | C13: =AVERAGE(B9:B13) -> 6.075
A14: 10 | B14: 5.6 | C14: =AVERAGE(B11:B14) -> 5.925
A15: 11 | B15: 5.4 | C15: =AVERAGE(B12:B15) -> 5.7
A16: 12 | E16: 5.2
A17: 13 | E17: 5
A18: 14 | E18: 5.3
A19: 15 | B19: 6.4 | C19: =AVERAGE(B13:B19) -> 5.85
A20: 16 | B20: 6.5 | C20: =AVERAGE(B14:B20) -> 5.975
A21: 17 | D21: 6.8
A22: 18 | B22: 7.5 | C22: =AVERAGE(B15:B22) -> 6.45
A23: 19 | B23: 7.1 | C23: =AVERAGE(B19:B23) -> 6.875
A24: 20 | B24: 6.9 | C24: =AVERAGE(B20:B24) -> 7
